bitfinex/quotes_SOLUSD_20240905
["timestamp","ask_amount","ask_price","bid_price","bid_amount"]
[1725550983410,7.6168,131.29,131.24,7.6191]
[1725550983937,72.6161,131.3,131.25,7.6189]
[1725550984126,20.0,131.3,131.26,7.618]
[1725550985105,16.2434,131.35,131.28,7.6172]
[1725550985310,16.2434,131.35,131.29,0.71509565]
[1725550985311,65.0,131.34,131.29,0.71509565]
[1725550985620,7.6144,131.33,131.29,8.33169565]
[1725550985793,6.0982,131.37,131.3,7.616]
[1725550985997,7.6133,131.35,131.3,7.616]
[1725550987105,20.0,131.34,131.3,7.616]
[1725550988912,7.6142,131.34,131.29,19.041]
[1725550989515,7.6137,131.35,131.3,7.616]
[1725550989711,7.6137,131.35,131.29,19.041]
[1725550989712,20.0,131.34,131.31,7.6154]
[1725550990411,16.0817,131.39,131.32,8.75087447]
[1725550990732,19.0253,131.41,131.33,20.17128797]
[1725550990905,7.6113,131.39,131.33,19.0354]
[1725550991105,7.6115,131.38,131.34,7.6136]
[1725550991530,7.6115,131.38,131.33,26.6496]
[1725550991732,7.6115,131.38,131.34,7.6137]
[1725550992230,6.3287,131.44,131.35,19.0327]
[1725550992438,6.3287,131.44,131.34,23.2799]
[1725550992736,7.6101,131.41,131.37,26.6417]
[1725550993533,19.022,131.43,131.34,42.3138]
[1725550994033,45.0,131.42,131.34,42.3138]
[1725550994335,7.611,131.39,131.34,42.3138]
[1725550994530,39.0248,131.41,131.31,42.3176]
[1725550994838,45.0,131.4,131.31,42.3176]
[1725550995138,39.0278,131.39,131.31,42.3176]
[1725550995340,45.0,131.38,131.31,35.6562]
[1725550995549,7.6144,131.33,131.29,7.6165]
[1725550995768,7.6151,131.32,131.28,49.9391]
[1725550996044,7.6151,131.32,131.28,43.2777]
[1725550997035,26.108,131.37,131.3,19.04]
[1725550997240,45.0,131.36,131.3,19.04]
[1725550997533,27.6136,131.35,131.31,7.6154]
[1725550997713,27.6136,131.35,131.31,1.52284568]
[1725550997914,7.6138,131.34,131.31,1.52284568]
[1725550998139,7.6119,131.38,131.34,7.6138]
[1725550998309,25.5327,131.4,131.33,1.52244319]
[1725550999137,7.6124,131.37,131.33,7.6142]
[1725551000023,52.6128,131.36,131.32,26.6518]
[1725551000225,52.6128,131.36,131.28,16.6185]
[1725551000226,45.0,131.36,131.29,19.0406]
[1725551000436,45.0,131.37,131.28,16.6185]
[1725551000635,7.6166,131.3,131.26,19.0453]
[1725551000840,7.6166,131.3,131.26,26.6636]
[1725551002137,19.035,131.34,131.27,7.6178]
[1725551002138,7.6157,131.31,131.27,7.6178]
[1725551002938,7.6174,131.28,131.24,31.90946812]
[1725551003341,7.6179,131.27,131.24,7.92206812]
[1725551003536,19.0411,131.3,131.22,6.4228]
[1725551003840,20.0,131.26,131.2,35.0068]
[1725551004019,20.0,131.26,131.2,15.9527]
[1725551004348,7.6196,131.24,131.2,23.5745]
[1725551004526,19.0402,131.31,131.2,15.9527]
[1725551004725,7.6171,131.29,131.24,7.6195]
[1725551004923,20.0,131.28,131.24,7.6195]
[1725551005319,20.0,131.28,131.22,19.0511]
[1725551005523,20.0,131.32,131.22,19.0511]
[1725551005736,45.0,131.31,131.22,19.0511]
[1725551006044,20.0,131.3,131.26,7.6183]
[1725551006218,20.0,131.3,131.24,19.0483]
[1725551006420,52.616,131.31,131.26,7.6183]
[1725551006940,45.0,131.31,131.25,7.6189]
[1725551007145,7.6168,131.29,131.24,26.6677]
[1725551007444,45.0,131.31,131.25,7.6189]
[1725551007641,7.6178,131.28,131.24,19.0483]
[1725551007949,7.6184,131.26,131.22,7.6206]
[1725551008131,39.0411,131.3,131.21,26.674]
[1725551008448,7.6191,131.25,131.21,26.674]
[1725551009447,7.6197,131.24,131.2,23.5744]
[1725551011047,61.4182,131.29,131.2,15.9527]
[1725551011241,20.0,131.28,131.2,23.5746]
[1725551011443,45.0,131.27,131.19,7.6225]
[1725551011619,20.0,131.26,131.18,32.8828]
[1725551011947,45.0,131.25,131.18,32.8828]
[1725551012149,7.6203,131.23,131.18,32.8828]
[1725551013247,7.6203,131.23,131.19,7.6224]
[1725551014151,27.6197,131.24,131.19,8.42652008]
[1725551014357,27.6197,131.24,131.2,1.52411745]
[1725551014561,27.6197,131.24,131.19,7.6224]
[1725551015242,52.6202,131.23,131.19,7.6224]
[1725551016628,7.6211,131.22,131.18,26.6804]
[1725551016831,7.6216,131.21,131.17,23.7048]
[1725551017236,45.0,131.23,131.17,16.0813]
[1725551017530,7.6218,131.21,131.17,16.0813]
[1725551017731,7.6218,131.21,131.17,23.7048]
[1725551019060,20.0,131.22,131.15,25.4078]
[1725551019061,7.6221,131.2,131.16,7.6242]
[1725551019654,7.6214,131.21,131.17,7.6236]
[1725551020650,7.6228,131.19,131.15,25.4078]
[1725551020961,7.6231,131.18,131.15,19.0611]
[1725551021529,7.6231,131.18,131.14,23.3711844]
[1725551021953,7.6231,131.18,131.14,30.9964844]
[1725551023231,7.6227,131.19,131.15,7.6246]
[1725551023437,7.6221,131.2,131.16,26.6843]
[1725551023752,20.0,131.19,131.14,23.3711844]
[1725551023946,7.6231,131.18,131.14,30.9963844]
[1725551024264,20.0,131.19,131.14,23.3711844]
[1725551024560,7.6228,131.19,131.15,7.6247]
[1725551026053,7.6228,131.19,131.15,26.6866]
[1725551026377,7.6232,131.18,131.15,19.0619]
[1725551027274,7.6226,131.19,131.15,26.6866]
[1725551027469,7.6226,131.19,131.15,27.90646695]
[1725551028050,7.6226,131.19,131.15,26.6866]
[1725551028369,7.6235,131.18,131.14,30.9964844]
[1725551030056,7.6237,131.17,131.14,15.5746844]
[1725551030362,20.0,131.2,131.11,7.6268]
[1725551030363,7.6248,131.15,131.11,7.6268]
[1725551031981,7.6244,131.16,131.12,7.6265]
[1725551033568,7.6232,131.18,131.13,19.55302744]
[1725551033780,7.6232,131.18,131.14,8.84607682]
[1725551033977,7.6237,131.17,131.13,26.6904]
[1725551034370,7.6237,131.17,131.14,7.6254]
[1725551034673,7.6233,131.18,131.14,7.6254]
[1725551035980,7.6233,131.18,131.15,7.6248]
[1725551036299,7.622,131.2,131.16,7.624]
[1725551036469,7.6226,131.19,131.16,7.624]
[1725551036670,7.6226,131.19,131.15,26.6864]
[1725551037183,7.6226,131.19,131.16,7.6241]
[1725551038173,7.6226,131.19,131.15,26.6864]
[1725551038499,16.2487,131.23,131.1,53.2536]
[1725551038677,20.0,131.18,131.1,53.2536]
[1725551038886,45.0,131.17,131.1,53.2536]
[1725551039077,7.6246,131.16,131.12,7.6264]
[1725551039401,7.6246,131.16,131.12,26.6927]
[1725551040199,7.6246,131.16,131.13,7.6259]
[1725551040899,45.0,131.17,131.12,19.0663]
[1725551041111,20.0,131.16,131.1,15.1162]
[1725551041276,7.6272,131.11,131.06,42.1814]
[1725551041473,45.0,131.15,131.06,34.5519]
[1725551041791,45.0,131.15,131.06,15.4777]
[1725551041792,39.064,131.14,131.06,15.4777]
[1725551041974,45.0,131.13,131.06,15.4777]
[1725551042170,20.0,131.12,131.06,15.4777]
[1725551042396,45.0,131.11,131.06,15.4777]
[1725551042606,20.0,131.1,131.06,23.1075]
[1725551042776,34.1949,131.17,131.09,19.0699]
[1725551042977,7.6253,131.15,131.1,9.15280076]
[1725551043173,7.6253,131.15,131.09,19.0699]
[1725551043174,7.6261,131.13,131.09,26.6981]
[1725551043390,7.6267,131.12,131.06,34.552]
[1725551043581,84.0615,131.16,131.06,42.182]
[1725551043782,7.6278,131.1,131.06,34.552]
[1725551044025,7.6284,131.09,131.06,34.552]
[1725551044196,7.6278,131.1,131.06,34.552]
[1725551045108,7.6278,131.1,131.06,43.50258988]
[1725551045287,7.6272,131.11,131.06,42.1819]
[1725551045491,20.0,131.1,131.06,42.1819]
[1725551045679,7.6267,131.12,131.07,1.26647064]
[1725551046002,72.3156,131.17,131.08,7.6284]
[1725551046202,7.627,131.12,131.07,7.6293]
[1725551046901,7.6272,131.11,131.07,7.6293]
[1725551047090,7.6266,131.12,131.08,7.6289]
[1725551047610,7.6261,131.13,131.08,7.6289]
[1725551047775,20.0,131.12,131.09,9.15359197]
[1725551047979,20.0,131.12,131.08,19.0719]
[1725551047980,27.6266,131.12,131.08,26.7007]
[1725551048410,27.6266,131.12,131.06,15.4777]
[1725551048411,7.6248,131.16,131.12,7.6265]
[1725551048704,7.6248,131.15,131.11,7.627]
[1725551049094,7.6255,131.14,131.1,26.6966]
[1725551049597,7.625,131.15,131.1,26.6966]
[1725551052094,20.0,131.14,131.09,7.6282]
[1725551052412,20.0,131.14,131.06,53.6252]
[1725551052701,27.6254,131.14,131.1,7.6275]
[1725551052906,52.626,131.13,131.09,26.6986]
[1725551053106,7.6269,131.12,131.09,19.0704]
[1725551054320,45.0,131.13,131.09,26.6983]
[1725551055315,52.626,131.13,131.09,26.6983]
[1725551056121,20.0,131.14,131.1,7.6277]
[1725551056417,7.6247,131.16,131.12,7.6265]
[1725551056619,7.6234,131.18,131.13,19.065]
[1725551056793,7.6234,131.18,131.14,7.6248]
[1725551057318,7.6237,131.17,131.13,26.6908]
[1725551057522,7.6244,131.16,131.13,19.065]
[1725551057888,7.6244,131.16,131.13,26.691]
[1725551058115,7.6239,131.17,131.13,26.691]
[1725551058529,15.5007,131.21,131.12,23.445]
[1725551058823,7.6289,131.09,131.05,7.0455361]
[1725551059189,7.6289,131.09,131.05,14.6760361]
[1725551059390,7.6289,131.09,131.05,8.4787361]
[1725551060513,7.6278,131.1,131.05,8.4787361]
[1725551061397,19.0657,131.13,131.05,0.8482361]
[1725551061594,7.6295,131.08,131.05,0.8482361]
[1725551062095,27.6295,131.07,131.05,0.8482361]
[1725551062312,45.0,131.06,131.05,0.8482361]
[1725551062615,72.63,131.06,131.05,0.8482361]
[1725551063213,72.63,131.06,130.99,6.0903]
[1725551063214,7.6315,131.04,130.99,6.0903]
[1725551063524,7.6315,131.04,130.98,42.6061]
[1725551063820,65.0,131.06,131.01,7.6329]
[1725551066110,20.0,131.05,130.98,34.9713]
[1725551066310,7.6313,131.04,131.0,7.6335]
[1725551066529,7.6313,131.04,130.99,7.634]
[1725551066711,27.6308,131.05,131.0,7.6335]
[1725551067103,20.0,131.05,131.01,7.6329]
[1725551067423,7.6302,131.06,131.01,7.6329]
[1725551067595,35.1023,131.11,131.01,6.277]
[1725551067596,7.6296,131.07,131.01,6.277]
[1725551067794,7.6305,131.06,131.01,6.277]
[1725551068198,35.1023,131.11,131.01,6.277]
[1725551068425,7.63,131.07,131.02,26.7118]
[1725551068620,7.6301,131.06,131.02,26.7118]
[1725551068922,7.6295,131.07,131.03,7.6317]
[1725551069328,19.0715,131.09,131.01,6.277]
[1725551069499,20.0,131.08,130.99,19.0845]
[1725551069691,7.6313,131.04,130.99,26.7181]
[1725551070319,7.6326,131.02,130.98,22.1575]
[1725551070520,7.6335,131.01,130.98,22.1575]
[1725551071519,45.0,131.07,130.94,15.7302]
[1725551071723,20.0,131.06,131.0,26.7163]
[1725551071929,7.6316,131.04,131.0,19.083]
[1725551072108,7.6316,131.04,131.0,26.7165]
[1725551072315,7.6316,131.04,131.0,19.083]
[1725551072620,7.6318,131.03,131.0,19.083]
[1725551072998,7.6314,131.04,131.0,19.083]
[1725551073610,7.6318,131.03,131.0,19.083]
[1725551075215,7.6314,131.04,131.0,19.083]
[1725551075723,7.6319,131.03,130.99,7.634]
[1725551076221,7.632,131.03,130.98,7.6345]
[1725551076633,7.6313,131.04,131.0,7.6335]
[1725551076801,20.0,131.03,131.0,7.6335]
[1725551077312,20.0,131.03,130.99,26.719]
[1725551078026,7.6301,131.06,131.01,19.082]
[1725551078325,19.0702,131.1,131.03,26.7109]
[1725551078528,7.6292,131.08,131.03,26.7109]
[1725551079031,7.6295,131.07,131.04,7.6312]
[1725551079329,22.0144,131.12,131.03,19.0794]
[1725551079831,7.6292,131.08,131.04,7.631]
[1725551079995,20.0,131.07,131.04,7.631]
[1725551080198,20.0,131.07,131.03,19.0794]
[1725551080199,27.6296,131.07,131.03,26.7111]
[1725551080398,7.6301,131.06,131.02,7.6321]
[1725551080600,20.0,131.07,131.0,34.248]
[1725551080804,7.6313,131.04,131.0,41.8811]
[1725551081569,7.6319,131.03,131.0,34.248]
[1725551081700,45.0,131.06,131.0,34.248]
[1725551081905,20.0,131.05,131.0,34.248]
[1725551082131,20.0,131.05,131.0,41.8812]
[1725551082132,7.6314,131.04,131.0,41.8812]
[1725551082736,7.6318,131.03,131.0,15.1654]
[1725551083038,52.6318,131.03,131.0,15.1654]
[1725551083328,7.6318,131.03,131.0,15.1654]
[1725551083538,20.0,131.05,131.01,7.6329]
[1725551083832,20.0,131.06,131.01,19.082]
[1725551084039,7.6301,131.06,131.02,7.6322]
[1725551084333,7.6296,131.07,131.03,7.6317]
[1725551084531,20.0,131.06,131.03,7.6317]
[1725551084733,20.0,131.06,131.04,7.631]
[1725551084917,20.0,131.06,131.03,26.7106]
[1725551087248,20.0,131.06,131.0,34.2485]
[1725551087437,20.0,131.07,131.02,7.6324]
[1725551087745,20.0,131.07,130.96,23.72408498]
[1725551087932,38.1323,131.13,130.96,23.72408498]
[1725551087933,7.634,131.0,130.96,23.72408498]
[1725551088142,7.634,131.0,130.96,15.7655]
[1725551088447,7.6331,131.01,130.96,23.4013]
[1725551088850,19.079,131.04,130.96,15.7655]
[1725551088851,7.6343,130.99,130.96,15.7655]
[1725551089067,7.6336,131.0,130.96,15.7655]
[1725551089433,45.0,130.99,130.96,15.7655]
[1725551089638,7.6336,131.0,130.96,15.7655]
[1725551090027,59.5311,131.06,130.92,17.0030361]
[1725551090028,7.6367,130.95,130.92,17.0030361]
[1725551090333,20.0,130.99,130.92,0.8482361]
[1725551090532,26.307,130.99,130.92,0.8482361]
[1725551090751,45.0,130.98,130.92,0.8482361]
[1725551090922,20.0,130.97,130.92,0.8482361]
[1725551091119,45.0,130.96,130.92,0.8482361]
[1725551091324,20.0,130.95,130.92,0.8482361]
[1725551092855,7.6347,130.98,130.92,8.4864361]
[1725551093056,20.0,130.97,130.92,0.8482361]
[1725551093555,7.6359,130.96,130.92,0.8482361]
[1725551093758,52.6359,130.96,130.92,0.8482361]
[1725551094965,7.6365,130.95,130.92,0.8482361]
[1725551095135,45.0,130.96,130.92,0.8482361]
[1725551095452,45.0,130.96,130.92,2.37565019]
[1725551095652,20.0,130.97,130.92,0.8482361]
[1725551095859,16.2703,131.0,130.93,7.6375]
[1725551095860,7.6347,130.98,130.93,7.6375]
[1725551096158,65.0,130.97,130.93,7.6375]
[1725551096332,20.0,130.97,130.93,7.6375]
[1725551098028,7.6341,131.0,130.94,7.6365]
[1725551098360,45.0,130.99,130.94,7.6365]
[1725551098548,20.0,130.98,130.94,7.6365]
[1725551098858,20.0,130.98,130.94,8.53222173]
[1725551099059,20.0,130.98,130.94,7.6365]
[1725551100373,42.62280989,131.07,130.95,15.3267]
[1725551100755,42.62280989,131.07,130.96,6.6304]
[1725551100959,41.3001,131.07,130.97,1.52659047]
[1725551101161,4.59331107,131.09,130.97,1.52659047]
[1725551101461,7.6307,131.05,131.01,26.7145]
[1725551101673,7.6307,131.05,131.01,19.0817]
[1725551101879,7.6307,131.05,131.01,42.3518]
[1725551102186,6.053,131.1,131.03,7.6318]
[1725551102387,20.38627909,131.14,131.06,7.6299]
[1725551102686,7.6278,131.1,131.05,7.6306]
[1725551103182,7.6273,131.11,131.06,7.63]
[1725551103563,19.0642,131.14,131.07,7.6293]
[1725551103564,7.6267,131.12,131.07,7.6293]
[1725551103868,7.6272,131.11,131.07,7.6293]
[1725551104171,7.6279,131.1,131.06,7.6299]
[1725551104686,7.6279,131.1,131.05,26.7065]
[1725551104990,6.3797,131.15,131.07,19.0726]
[1725551105161,7.6255,131.14,131.09,7.6283]
[1725551105460,7.627,131.12,131.08,15.3752]
[1725551106187,6.0845,131.18,131.1,7.6276]
[1725551106389,6.0845,131.18,131.11,8.7391932]
[1725551106690,19.0603,131.17,131.08,15.3752]
[1725551106881,7.6261,131.13,131.08,23.0039]
[1725551108284,19.0603,131.17,131.08,34.4463]
[1725551108472,7.626,131.13,131.08,42.075]
[1725551108682,20.0,131.12,131.06,7.6296]
[1725551108860,35.7309,131.12,131.02,35.1323]
[1725551109357,7.6308,131.05,131.02,16.0518]
[1725551109557,7.6302,131.06,131.02,16.0518]
[1725551109789,40.12689935,131.12,131.02,16.0518]
[1725551110085,7.6291,131.08,131.03,26.7104]
[1725551110277,20.0,131.07,131.04,7.6311]
[1725551110479,7.6287,131.09,131.04,7.6311]
[1725551110780,7.6302,131.06,131.02,16.0518]
[1725551110979,7.6309,131.05,131.01,7.6328]
[1725551111193,20.0,131.08,130.99,15.3058]
[1725551111357,83.1382,131.11,130.96,6.0758]
[1725551111358,7.6337,131.0,130.96,6.0758]
[1725551111559,19.0788,131.04,130.96,13.7116]
[1725551111900,7.6342,130.99,130.95,22.9421]
[1725551112067,7.6337,131.0,130.95,22.9421]
[1725551112462,7.6331,131.01,130.96,7.6357]
[1725551112662,7.6331,131.01,130.97,9.16200771]
[1725551113393,7.6331,131.01,130.97,7.6352]
[1725551113576,19.0745,131.07,130.98,19.0862]
[1725551113781,7.6313,131.04,130.99,7.6339]
[1725551114094,20.0,131.03,130.95,34.396]
[1725551114477,20.0,131.03,130.96,7.6358]
[1725551114683,45.0,131.02,130.95,34.396]
[1725551114889,7.6343,130.99,130.95,34.396]
[1725551115068,7.6337,131.0,130.95,42.0323]
[1725551115420,7.6319,131.03,130.99,7.6337]
[1725551115586,20.0,131.02,131.0,1.13074978]
[1725551115788,7.6308,131.05,131.0,1.13074978]
[1725551115976,7.6313,131.04,131.0,7.6334]
[1725551116186,7.6319,131.03,130.99,19.0849]
[1725551116984,7.6326,131.02,130.99,19.0849]
[1725551117183,7.6326,131.02,130.97,7.6351]
[1725551117491,19.0776,131.05,130.96,26.7246]
[1725551117705,45.0,131.04,130.96,19.0889]
[1725551117909,7.6326,131.02,130.98,7.6342]
[1725551118204,27.6319,131.03,130.99,7.6339]
[1725551118806,27.6319,131.03,131.0,1.50445518]
[1725551119303,27.6319,131.03,130.99,7.6339]
[1725551119512,19.0733,131.08,131.0,20.56019848]
[1725551119716,7.6311,131.05,131.0,26.7167]
[1725551123008,65.0,131.12,131.04,19.0773]
[1725551123209,7.6281,131.1,131.05,7.6304]
[1725551123525,7.6284,131.09,131.04,26.7083]
[1725551123691,20.0,131.09,131.04,26.7083]
[1725551123897,7.6295,131.07,131.04,19.0773]
[1725551124216,7.629,131.08,131.04,19.0773]
[1725551124419,7.629,131.08,131.04,26.7083]
[1725551124595,7.6284,131.09,131.04,26.7083]
[1725551125599,7.6284,131.09,131.05,7.6304]
[1725551126010,7.6289,131.08,131.04,26.7084]
[1725551126392,7.6289,131.08,131.05,1.52599355]
[1725551126593,7.6284,131.09,131.05,9.15659355]
[1725551126816,7.6284,131.09,131.05,7.6306]
[1725551127013,7.6289,131.08,131.04,26.7084]
[1725551127213,7.6279,131.1,131.05,1.52582735]
[1725551127394,20.0,131.09,131.05,9.15622735]
[1725551128095,20.0,131.09,131.04,19.0773]
[1725551128301,7.6281,131.1,131.06,7.63]
[1725551129419,7.6281,131.1,131.04,19.0773]
[1725551129420,7.6283,131.09,131.05,7.6304]
[1725551129910,7.6279,131.1,131.06,7.63]
[1725551130329,20.0,131.11,131.04,19.0773]
[1725551130495,20.0,131.11,131.06,7.6299]
[1725551130496,7.6282,131.1,131.06,7.6299]
[1725551130822,20.0,131.09,131.04,19.0773]
[1725551131025,20.0,131.11,131.04,19.0773]
[1725551131496,7.6287,131.09,131.05,7.6306]
[1725551133694,21.3177,131.19,131.06,66.5381]
[1725551133998,21.3177,131.19,131.11,7.627]
[1725551133999,7.6252,131.15,131.11,7.627]
[1725551134212,7.6244,131.16,131.12,9.00410526]
[1725551134402,7.6237,131.17,131.13,7.6258]
[1725551134818,57.1631,131.21,131.12,41.3211]
[1725551134819,7.6232,131.18,131.14,9.14754227]
[1725551135020,7.6232,131.18,131.15,1.52235477]
[1725551135316,19.0502,131.24,131.16,7.6241]
[1725551135503,19.0502,131.24,131.17,9.14532265]
[1725551135701,19.0502,131.24,131.15,7.6247]
[1725551135921,7.6229,131.19,131.13,19.0641]
[1725551136096,7.6229,131.19,131.15,7.6248]
[1725551136415,7.6215,131.21,131.16,7.6242]
[1725551136619,7.6215,131.21,131.17,1.11173298]
[1725551136828,20.0,131.2,131.17,1.52438413]
[1725551137121,7.622,131.2,131.16,7.6242]
[1725551137495,7.622,131.2,131.15,19.0612]
[1725551137496,7.6226,131.19,131.15,26.6859]
[1725551137809,4.38715424,131.25,131.12,22.2551]
[1725551137810,7.6232,131.18,131.13,7.6258]
[1725551138210,7.6249,131.15,131.12,41.321]
[1725551138409,7.6244,131.16,131.12,48.9475]
[1725551138907,7.6238,131.17,131.12,48.9475]
[1725551139401,7.6238,131.17,131.13,9.13612067]
[1725551139605,7.6238,131.17,131.13,7.6259]
[1725551140125,7.6238,131.17,131.12,41.321]
[1725551140126,7.6218,131.21,131.16,7.624]
[1725551140427,7.6218,131.21,131.12,110.3864]
[1725551140428,7.6218,131.21,131.17,8.44372503]
[1725551140607,7.6218,131.21,131.18,0.82006251]
[1725551140923,7.95625906,131.29,131.19,24.0321]
[1725551140924,7.6201,131.24,131.19,24.0321]
[1725551141113,26.99895906,131.29,131.19,16.41]
[1725551141114,7.6185,131.26,131.19,16.41]
[1725551141321,19.0383,131.32,131.2,51.635]
[1725551141817,19.0383,131.32,131.21,1.52225178]
[1725551142020,19.0383,131.32,131.2,51.635]
[1725551142319,19.0383,131.32,131.24,7.6194]
[1725551142320,7.6173,131.28,131.24,7.6194]
[1725551142697,20.0,131.27,131.23,7.62]
[1725551143120,7.6168,131.29,131.24,7.6195]
[1725551143333,7.6168,131.29,131.25,1.52110911]
[1725551143507,7.6168,131.29,131.24,19.0485]
[1725551143713,7.6168,131.29,131.24,26.6679]
[1725551145106,6.2239,131.34,131.26,7.6183]
[1725551145304,7.6163,131.3,131.26,26.6634]
[1725551145512,7.6163,131.3,131.26,19.0452]
[1725551146926,23.439618,131.35,131.26,26.6631]
[1725551147122,65.0,131.34,131.26,26.6631]
[1725551147440,7.6177,131.28,131.23,19.0497]
[1725551147605,19.0364,131.33,131.24,7.6191]
[1725551147808,65.0,131.32,131.24,7.6191]
[1725551148228,65.0,131.32,131.2,6.635]
[1725551148229,19.0392,131.31,131.22,7.6207]
[1725551148433,65.0,131.3,131.22,7.6207]
[1725551148727,7.6188,131.26,131.22,7.6207]
[1725551148939,7.618,131.27,131.22,7.6207]
[1725551149102,19.0422,131.29,131.21,7.6212]
[1725551149306,65.0,131.28,131.21,7.6212]
[1725551149829,7.6188,131.26,131.21,7.6212]
[1725551150223,7.6196,131.25,131.2,33.3104]
[1725551151030,7.6196,131.25,131.21,7.6213]
[1725551151231,7.618,131.27,131.22,19.0516]
[1725551151532,7.618,131.27,131.23,7.6201]
[1725551151730,65.0,131.28,131.2,6.635]
[1725551152309,19.0449,131.27,131.2,6.635]
[1725551152514,65.0,131.26,131.19,16.41]
[1725551152729,20.0,131.26,131.19,16.41]
[1725551152927,45.0,131.25,131.19,16.41]
[1725551153123,7.6217,131.21,131.19,16.41]
[1725551153328,19.0515,131.23,131.16,6.4262]
[1725551153641,7.6227,131.19,131.16,6.4262]
[1725551154227,7.6221,131.2,131.16,6.4262]
[1725551154811,7.6215,131.21,131.16,14.0501]
[1725551155120,20.0,131.22,131.16,6.4262]
[1725551155435,20.0,131.22,131.16,14.0504]
[1725551156111,20.0,131.22,131.17,7.6236]
[1725551156515,7.6218,131.21,131.17,7.6236]
[1725551156712,20.0,131.22,131.17,19.0589]
[1725551156909,45.0,131.25,131.16,6.4262]
[1725551156910,7.6225,131.19,131.16,6.4262]
[1725551157841,7.6214,131.21,131.17,7.6232]
[1725551158228,7.622,131.2,131.16,33.1101]
[1725551158431,20.0,131.24,131.16,6.4262]
[1725551158627,45.0,131.23,131.15,16.6486]
[1725551158939,7.6238,131.17,131.15,16.6486]
[1725551159118,64.0518,131.23,131.15,16.6486]
[1725551159308,20.0,131.22,131.15,16.6486]
[1725551159508,7.622,131.2,131.16,26.6844]
[1725551159731,27.6212,131.22,131.17,7.6233]
[1725551160042,20.0,131.22,131.18,7.623]
[1725551160245,19.0491,131.24,131.16,19.0604]
[1725551160418,20.0,131.23,131.16,19.0604]
[1725551160622,20.0,131.23,131.18,19.0574]
[1725551160923,0.5,131.62,131.2,19.0545]
[1725551160924,7.6189,131.26,131.2,19.0545]
[1725551161236,30.0615773,131.3,131.2,25.55]
[1725551161540,30.0615773,131.3,131.2,6.4955]
[1725551161541,7.619,131.26,131.2,6.4955]
[1725551161725,7.619,131.26,131.22,7.6205]
[1725551162037,7.6191,131.25,131.21,26.6744]
[1725551162418,7.6175,131.28,131.24,7.6195]
[1725551162644,7.6169,131.29,131.24,7.6194]
[1725551162816,7.6174,131.28,131.24,7.6194]
[1725551163314,7.6171,131.29,131.24,7.6194]
[1725551163516,7.6162,131.3,131.26,7.618]
[1725551163931,7.6162,131.3,131.25,26.6658]
[1725551164159,7.6162,131.3,131.26,7.6184]
[1725551164351,7.6157,131.31,131.26,7.6184]
[1725551164640,7.6157,131.31,131.27,7.6178]
[1725551165451,7.6157,131.31,131.26,7.6183]
[1725551165859,7.615,131.32,131.27,7.6178]
[1725551166021,20.0,131.31,131.27,7.6178]
[1725551166347,7.6145,131.33,131.28,7.6172]
[1725551167120,6.2013,131.36,131.27,19.0438]
[1725551167328,7.615,131.32,131.27,26.6614]
[1725551169333,6.2013,131.36,131.27,19.0438]